bitfinex/quotes_SOLUSD_20251206
["timestamp","ask_amount","ask_price","bid_price","bid_amount"]
[1765030014207,5.67100266,133.09,133.06,0.72]
[1765030016542,5.14100266,133.07,133.03,8.23654608]
[1765030016738,5.14100266,133.05,133.03,7.51654608]
[1765030016918,5.14100266,133.05,133.02,16.49755053]
[1765030017240,5.14100266,133.05,133.03,0.72]
[1765030021839,5.14100266,133.05,133.02,15.77755053]
[1765030022043,5.14100266,133.05,133.02,16.49755053]
[1765030022216,5.14100266,133.05,133.03,0.72]
[1765030028148,8.0455393,133.06,133.03,0.72]
[1765030028340,12.65654196,133.06,133.03,0.72]
[1765030034161,5.14100266,133.05,133.03,0.72]
[1765030034962,5.14100266,133.04,133.02,0.72]
[1765030035332,108.67100266,133.03,133.0,0.72]
[1765030035553,5.14100266,133.02,133.0,0.72]
[1765030035937,5.14100266,133.01,132.99,0.2]
[1765030036149,5.14100266,133.02,132.99,0.92]
[1765030037355,5.14100266,133.02,133.0,0.72]
[1765030039049,5.14100266,133.02,132.99,8.43926115]
[1765030039434,5.14100266,133.02,133.0,0.72]
[1765030040242,5.14100266,133.02,132.99,8.43926115]
[1765030040646,5.14100266,133.02,132.99,7.71926115]
[1765030040848,5.14100266,133.02,133.0,0.72]
[1765030041762,5.14100266,133.02,133.0,8.23874888]
[1765030046162,108.67100266,133.03,133.0,8.23874888]
[1765030050578,103.0,133.03,133.01,5.86100266]
[1765030050775,103.0,133.03,133.02,5.14100266]
[1765030051073,103.0,133.03,133.02,5.86100266]
[1765030051471,103.0,133.03,133.02,13.37866917]
[1765030054957,103.0,133.03,133.02,8.23766651]
[1765030061491,108.67100266,133.03,133.0,7.51835967]
[1765030061788,5.67100266,133.02,132.99,8.40923749]
[1765030065494,5.14100266,133.0,132.99,0.2]
[1765030065876,5.67100266,133.0,132.99,0.2]
[1765030071273,13.18979965,133.0,132.99,0.2]
[1765030071470,27.14074723,133.0,132.99,0.2]
[1765030072415,33.34099546,133.0,132.99,0.2]
[1765030072695,49.64985946,133.0,132.99,0.2]
[1765030073181,33.34099546,133.0,132.99,0.2]
[1765030074590,36.35293025,133.0,132.99,0.2]
[1765030080913,3.29645071,133.0,132.99,0.88]
[1765030081209,30.13468871,133.01,132.99,0.88]
[1765030081516,10.81479683,133.01,133.0,0.68]
[1765030081691,11.34479683,133.01,132.99,0.2]
[1765030081882,19.60531471,133.0,132.99,0.2]
[1765030082804,27.1241117,133.0,132.99,0.2]
[1765030084112,27.1241117,133.0,132.99,0.88]
[1765030087190,130.1241117,133.0,132.99,0.88]
[1765030088013,103.0,133.0,132.99,0.88]
[1765030090800,106.29645071,133.0,132.99,0.88]
[1765030091699,103.0,133.0,132.99,0.88]
[1765030095197,106.29645071,133.0,132.99,0.2]
[1765030095416,106.29645071,133.0,132.99,0.88]
[1765030095627,113.8152477,133.0,132.99,0.2]
[1765030096120,106.29645071,133.0,132.99,0.88]
[1765030097027,113.8152477,133.0,132.99,0.2]
[1765030097319,114.3452477,133.0,132.99,0.2]
[1765030097716,113.8152477,133.0,132.99,0.2]
[1765030099640,113.8152477,133.0,132.99,0.88]
[1765030103034,113.8152477,133.0,132.99,0.2]
[1765030103616,110.51879699,133.0,132.99,0.2]
[1765030103819,113.8152477,133.0,132.99,0.88]
[1765030105035,106.29645071,133.0,132.99,0.88]
[1765030105252,103.0,133.0,132.99,0.88]
[1765030114835,103.0,133.0,132.99,8.39936235]
[1765030117656,103.0,133.0,132.99,0.2]
[1765030117854,106.29645071,133.0,132.99,0.2]
[1765030119055,103.0,133.0,132.99,0.2]
[1765030119266,114.3452477,133.0,132.99,0.2]
[1765030119942,106.29645071,133.0,132.99,0.2]
[1765030120650,114.3452477,133.0,132.99,0.2]
[1765030122756,103.0,133.0,132.99,0.89]
[1765030126147,103.0,133.0,132.99,11.70581306]
[1765030129549,103.0,133.0,132.99,8.40936235]
[1765030130567,103.0,133.0,132.99,11.70581306]
[1765030131841,122.60531471,133.03,132.99,11.70581306]
[1765030132043,122.60531471,133.03,133.0,0.69]
[1765030132874,119.308864,133.03,133.0,8.20878432]
[1765030133255,119.308864,133.03,133.01,0.69]
[1765030141595,124.45373317,133.03,133.01,0.69]
[1765030142187,5.67486917,133.02,132.99,0.2]
[1765030142569,0.53,133.01,132.99,0.2]
[1765030142777,5.67486917,133.01,132.99,0.2]
[1765030143385,0.53,133.01,132.99,0.2]
[1765030143903,7.51797158,133.02,132.99,0.89]
[1765030144972,13.19284075,133.02,132.99,0.2]
[1765030145170,5.14486917,133.01,132.99,0.2]
[1765030145485,12.66327437,133.01,132.99,0.2]
[1765030146081,12.66327437,133.01,132.99,0.89]
[1765030149593,115.66327437,133.01,132.99,0.89]
[1765030149974,103.0,133.01,132.99,0.2]
[1765030150176,103.0,133.01,133.0,0.68]
[1765030155993,103.0,133.01,132.99,0.88]
[1765030160184,111.0483606,133.01,132.99,0.2]
[1765030160387,116.19322977,133.01,132.99,0.2]
[1765030160994,116.19322977,133.01,132.99,0.88]
[1765030162577,111.0483606,133.01,132.99,0.88]
[1765030162777,110.5183606,133.01,132.99,0.88]
[1765030163992,110.5183606,133.01,132.99,0.2]
[1765030163993,108.67486917,133.0,132.99,0.2]
[1765030164198,35.93854726,133.0,132.99,0.2]
[1765030164496,35.93854726,133.0,132.95,0.2]
[1765030164497,16.308864,132.97,132.95,0.2]
[1765030164707,5.14486917,132.96,132.95,0.2]
[1765030164885,5.57486917,132.96,132.95,0.2]
[1765030165079,8.58680396,132.96,132.95,0.2]
[1765030165599,5.14486917,132.96,132.95,0.2]
[1765030167392,13.09592813,132.96,132.95,0.2]
[1765030167596,16.10808973,132.96,132.95,0.2]
[1765030171225,3.0121616,132.96,132.95,0.2]
[1765030171390,32.08937426,132.97,132.95,0.2]
[1765030171711,5.14486917,132.96,132.95,0.2]
[1765030175118,5.14486917,132.96,132.95,0.88]
[1765030179016,21.45373317,132.97,132.95,0.88]
[1765030179202,21.45373317,132.97,132.96,0.69]
[1765030179724,21.45373317,132.97,132.95,0.2]
[1765030179891,21.45373317,132.97,132.95,0.89]
[1765030180394,21.45373317,132.97,132.96,0.69]
[1765030181924,21.45373317,132.97,132.95,0.2]
[1765030182097,21.45373317,132.97,132.95,0.89]
[1765030182614,21.45373317,132.97,132.95,0.2]
[1765030182802,21.45373317,132.97,132.95,0.89]
[1765030183289,21.45373317,132.97,132.96,0.69]
[1765030183491,21.45373317,132.97,132.95,0.2]
[1765030183707,21.45373317,132.97,132.95,0.89]
[1765030188622,16.308864,132.97,132.95,0.89]
[1765030188820,21.45373317,132.97,132.95,0.89]
[1765030191822,5.14486917,132.96,132.95,0.89]
[1765030192132,5.14486917,132.96,132.95,0.2]
[1765030192334,13.09592813,132.96,132.95,0.2]
[1765030192621,12.66592813,132.96,132.95,0.2]
[1765030193428,12.66592813,132.96,132.95,0.89]
[1765030193605,12.66592813,132.96,132.95,0.2]
[1765030193805,12.66592813,132.96,132.95,0.89]
[1765030194605,10.81791029,132.96,132.95,0.89]
[1765030194805,10.81791029,132.96,132.95,0.2]
[1765030195529,10.81791029,132.96,132.95,0.86]
[1765030197737,3.29685133,132.96,132.95,0.86]
[1765030198338,19.60571533,132.97,132.95,0.86]
[1765030198522,16.308864,132.97,132.96,0.66]
[1765030198727,19.60571533,132.97,132.95,0.86]
[1765030199429,19.60571533,132.97,132.96,0.66]
[1765030200115,122.60571533,132.97,132.96,0.66]
[1765030201348,130.5563279,132.97,132.95,0.2]
[1765030201526,3.72685133,132.96,132.95,0.2]
[1765030202145,3.29685133,132.96,132.95,0.2]
[1765030203121,3.29685133,132.96,132.95,0.86]
[1765030206023,10.81791029,132.96,132.95,0.86]
[1765030208644,3.29685133,132.96,132.95,0.86]
[1765030214732,10.81791029,132.96,132.95,0.2]
[1765030215043,10.81791029,132.96,132.95,0.91]
[1765030218164,126.82950437,132.97,132.95,0.91]
[1765030218341,3.29685133,132.96,132.95,0.91]
[1765030218734,3.72685133,132.96,132.95,0.2]
[1765030220855,11.24791029,132.96,132.95,0.2]
[1765030221560,20.05785521,132.96,132.95,0.2]
[1765030234374,19.62785521,132.96,132.95,0.91]
[1765030234683,27.88785521,132.96,132.95,0.91]
[1765030235058,27.88785521,132.96,132.95,0.2]
[1765030235462,28.31785521,132.96,132.95,0.2]
[1765030235652,27.88785521,132.96,132.95,0.2]
[1765030236182,28.31785521,132.96,132.95,0.2]
[1765030238155,31.33024365,132.96,132.95,0.2]
[1765030238354,30.90024365,132.96,132.95,0.2]
[1765030240701,30.90024365,132.96,132.95,0.9]
[1765030240883,30.90024365,132.96,132.95,0.2]
[1765030243402,31.33024365,132.96,132.95,0.2]
[1765030245389,30.90024365,132.96,132.95,0.2]
[1765030246113,31.33024365,132.96,132.95,0.2]
[1765030246409,31.33024365,132.96,132.94,0.2]
[1765030246702,3.72685133,132.95,132.94,0.2]
[1765030247017,16.308864,132.94,132.93,0.2]
[1765030247178,31.59256666,132.94,132.93,0.2]
[1765030247712,34.60563584,132.94,132.93,0.2]
[1765030248297,41.6978263,132.94,132.93,0.2]
[1765030249186,38.40097497,132.94,132.93,0.2]
[1765030250101,41.6978263,132.94,132.93,0.2]
[1765030251292,42.1278263,132.94,132.93,0.2]
[1765030253401,41.6978263,132.94,132.93,0.2]
[1765030254407,45.41481482,132.94,132.93,0.2]
[1765030255401,45.84481482,132.94,132.93,0.2]
[1765030258810,45.41481482,132.94,132.93,0.2]
[1765030259715,40.25946923,132.94,132.93,0.9]
[1765030260318,40.25946923,132.94,132.93,0.2]
[1765030263728,45.84481482,132.94,132.93,0.2]
[1765030264033,45.41481482,132.94,132.93,0.2]
[1765030264403,31.99946923,132.94,132.93,0.9]
[1765030264705,28.98640005,132.94,132.93,0.9]
[1765030266116,5.15534559,132.94,132.93,0.9]
[1765030266891,7.52105199,132.97,132.93,0.9]
[1765030267097,21.46420959,132.95,132.94,0.7]
[1765030267517,5.15534559,132.95,132.94,0.7]
[1765030267722,5.15534559,132.96,132.94,0.7]
[1765030268517,5.15534559,132.95,132.94,0.7]
[1765030274051,5.15534559,132.96,132.94,0.7]
[1765030275312,5.15534559,132.97,132.94,0.7]
[1765030276532,5.15534559,132.96,132.94,0.7]
[1765030283929,5.15534559,132.96,132.94,8.22218637]
[1765030284233,5.15534559,132.97,132.94,8.22218637]
[1765030284534,5.15534559,132.97,132.95,0.67]
[1765030287636,110.51999568,132.98,132.95,0.67]
[1765030287637,5.15534559,132.96,132.95,0.67]
[1765030288939,5.15534559,132.97,132.95,0.67]
[1765030289124,5.15534559,132.96,132.95,0.67]
[1765030291737,5.15534559,132.97,132.95,0.67]
[1765030292547,5.15534559,133.02,132.96,13.41534559]
[1765030292750,5.15534559,133.02,132.97,5.15534559]
[1765030293045,5.15534559,133.0,132.97,0.67]
[1765030293248,5.15534559,133.0,132.98,0.67]
[1765030294925,5.15534559,132.99,132.98,0.67]
[1765030298450,5.15534559,133.0,132.98,0.67]
[1765030301151,108.15534559,133.0,132.98,0.67]
[1765030307160,5.15534559,132.99,132.98,0.67]
[1765030307455,5.58534559,132.99,132.96,8.97]
[1765030308263,5.15534559,132.99,132.97,0.71]
[1765030308956,5.15534559,132.99,132.96,8.26]
[1765030308957,5.15534559,132.98,132.96,8.26]
[1765030309167,5.15534559,132.97,132.95,0.71]
[1765030312665,103.0,132.98,132.95,0.71]
[1765030312666,108.15534559,132.98,132.95,0.71]
[1765030313163,103.0,132.98,132.95,0.71]
[1765030313344,5.15534559,132.97,132.95,0.71]
[1765030316577,3.29577686,132.97,132.95,0.71]
[1765030317867,103.0,132.98,132.95,8.23161449]
[1765030318066,106.29577686,132.98,132.95,8.23161449]
[1765030318262,103.0,132.98,132.96,0.66]
[1765030319348,103.0,132.98,132.96,8.18097181]
[1765030319548,103.0,132.98,132.97,0.66]
[1765030323065,106.29577686,132.98,132.96,8.26]
[1765030323261,3.29577686,132.97,132.95,0.66]
[1765030323864,110.95004307,132.98,132.95,0.66]
[1765030323865,3.29577686,132.96,132.95,0.66]
[1765030324679,3.29577686,132.97,132.95,0.66]
[1765030325066,3.29577686,132.96,132.94,8.92]
[1765030326759,3.29577686,132.96,132.95,0.66]
[1765030331979,2.50962986,132.96,132.95,0.66]
[1765030332487,7.52060081,132.97,132.95,0.66]
[1765030332488,3.29577686,132.97,132.95,0.66]
[1765030333082,114.55577686,132.98,132.95,0.66]
[1765030333782,106.29577686,132.98,132.95,0.66]
[1765030334782,106.29577686,132.98,132.95,8.92]
[1765030335090,3.29577686,133.0,132.96,0.66]
[1765030336084,3.29577686,133.0,132.96,8.18100538]
[1765030336483,3.29577686,132.99,132.97,0.66]
[1765030337391,3.29577686,132.99,132.97,8.18046799]
[1765030337692,3.29577686,132.99,132.97,0.66]
[1765030337869,3.29577686,133.0,132.98,0.66]
[1765030338682,3.29577686,132.99,132.98,0.66]
[1765030340796,3.29577686,132.99,132.96,0.66]
[1765030340998,7.94887505,133.0,132.97,0.66]
[1765030340999,3.29577686,132.98,132.97,0.66]
[1765030341786,3.72577686,132.98,132.95,0.66]
[1765030342095,3.29577686,132.96,132.95,0.66]
[1765030342899,3.29577686,132.98,132.95,0.66]
[1765030343092,3.29577686,132.98,132.95,8.18146382]
[1765030343592,3.29577686,132.98,132.96,0.66]
[1765030356518,3.29577686,132.97,132.96,0.66]
[1765030361119,3.29577686,132.98,132.96,0.66]
[1765030371835,113.81530151,132.99,132.96,0.66]
[1765030372430,106.29577686,132.99,132.96,0.66]
[1765030373732,3.29577686,132.98,132.96,0.66]
[1765030375029,106.29577686,132.99,132.96,0.66]
[1765030376344,106.72577686,132.99,132.96,0.66]
[1765030376523,3.29577686,132.98,132.96,0.66]
[1765030378529,5.14891878,132.98,132.96,0.66]
[1765030379014,5.14891878,132.98,132.95,0.71]
[1765030379015,5.57891878,132.98,132.95,0.71]
[1765030380007,5.14891878,132.98,132.95,0.71]
[1765030381831,110.94944657,132.99,132.95,0.71]
[1765030382032,5.14891878,132.98,132.95,0.71]
[1765030382602,110.94944657,132.99,132.95,0.71]
[1765030382603,110.51944657,132.99,132.95,0.71]
[1765030382809,5.14891878,132.98,132.95,8.23152318]
[1765030383110,108.14891878,132.99,132.95,8.23152318]
[1765030383316,108.14891878,132.99,132.96,0.71]
[1765030384133,103.0,132.99,132.97,8.26]
[1765030384316,103.0,132.99,132.97,13.40891878]
[1765030384627,103.0,132.99,132.98,0.71]
[1765030389517,103.0,132.99,132.98,13.37884658]
[1765030390111,131.97498298,133.03,132.98,13.37884658]
[1765030390311,131.97498298,133.03,132.99,5.83891878]
[1765030391124,131.97498298,133.03,133.0,0.69]
[1765030391821,126.8260642,133.03,133.0,0.69]
[1765030392023,131.97498298,133.03,133.0,0.69]
[1765030393712,108.14891878,133.03,133.0,8.95]
[1765030393912,103.0,133.03,133.0,14.09891878]
[1765030394112,103.0,133.03,133.01,0.69]
[1765030395039,5.14891878,133.02,132.99,0.69]
[1765030395212,5.14891878,133.01,132.99,0.69]
[1765030397040,13.09675561,133.02,132.99,0.69]
[1765030397335,5.14891878,133.01,132.99,0.69]
[1765030398936,13.09675561,133.02,132.99,0.69]
[1765030400141,5.14891878,133.01,132.99,0.69]
[1765030401038,5.14891878,133.0,132.98,8.95]
[1765030401337,5.57891878,132.99,132.96,8.21100804]
[1765030401527,5.14891878,132.99,132.97,0.69]
[1765030403345,103.0,133.0,132.97,0.69]
[1765030403640,108.14891878,133.0,132.97,0.69]
[1765030405541,103.0,133.0,132.97,0.69]
[1765030405741,108.14891878,133.0,132.97,0.69]
[1765030408148,108.14891878,133.0,132.97,8.21038578]
[1765030408523,103.0,133.0,132.98,0.69]
[1765030409749,103.0,133.0,132.99,8.26]
[1765030410250,103.0,133.0,132.99,16.46936235]
[1765030410947,21.45778278,133.02,132.99,16.46936235]
[1765030411155,21.45778278,133.02,133.0,0.69]
[1765030413553,5.14891878,133.01,132.99,8.26]
[1765030413846,5.14891878,133.01,132.99,8.95]
[1765030414842,5.14891878,133.0,132.97,8.21033418]
[1765030415048,5.14891878,133.0,132.98,8.95]
[1765030419752,5.14891878,133.01,132.99,0.71]
[1765030427369,5.14891878,133.04,132.99,13.37824169]
[1765030427553,5.14891878,133.04,133.0,5.14891878]
[1765030427743,5.14891878,133.04,133.01,8.97]
[1765030428136,5.14891878,133.04,133.02,0.71]
[1765030428332,5.14891878,133.05,133.02,0.71]
[1765030428960,5.14891878,133.04,133.02,0.71]
[1765030432842,5.57891878,133.03,132.98,7.51978214]
[1765030433042,5.14891878,133.01,132.98,16.48978214]
[1765030433254,5.14891878,133.01,132.99,0.71]
[1765030440371,3.29369736,133.01,132.99,0.71]
[1765030444662,7.51715296,133.03,132.99,8.22926623]
[1765030444972,3.29369736,133.01,132.99,8.22926623]
[1765030445179,3.29369736,133.02,133.0,0.67]
[1765030449077,3.29369736,133.03,133.0,8.18878487]
[1765030449576,3.29369736,133.03,133.01,0.71]
[1765030454559,3.29369736,133.02,133.01,0.71]
[1765030463591,3.29369736,133.02,132.98,15.77937219]
[1765030463794,3.29369736,133.02,133.01,0.71]
[1765030464495,3.29369736,133.02,132.99,8.22936199]
[1765030464680,3.29369736,133.01,133.0,0.71]
[1765030465498,3.29369736,133.02,133.0,0.71]
[1765030467997,121.7913768,133.04,132.98,15.77980617]
[1765030468176,3.29369736,133.0,132.98,8.97]
[1765030471296,3.72369736,133.01,132.98,8.97]
[1765030472691,3.29369736,133.01,132.99,0.71]
[1765030486002,3.29369736,133.0,132.99,0.71]
[1765030498817,11.24249435,133.0,132.96,8.96]
[1765030499005,3.29369736,132.98,132.96,0.7]
[1765030499401,3.29369736,132.97,132.96,0.7]
[1765030500199,3.29369736,132.97,132.95,0.7]
[1765030500401,5.15021349,132.96,132.95,0.7]
[1765030508439,5.15021349,132.98,132.95,8.22158827]
[1765030508936,5.15021349,132.98,132.96,0.66]
[1765030511042,5.15021349,132.97,132.94,21.79289577]
[1765030511339,5.15021349,132.96,132.95,0.66]
[1765030512549,5.15021349,132.97,132.95,0.66]
[1765030514820,35.53453469,133.01,132.95,5.81021349]
[1765030515045,5.15021349,133.0,132.96,0.66]
[1765030515220,5.15021349,132.98,132.96,0.66]
[1765030520049,16.40895973,133.0,132.96,0.66]
[1765030520231,5.15021349,132.98,132.96,0.66]
[1765030523231,5.15021349,132.97,132.95,0.66]
[1765030523550,5.15021349,132.97,132.94,8.92]
[1765030523551,5.15021349,132.96,132.94,8.92]
[1765030524282,108.15021349,133.0,132.94,8.92]
[1765030524283,0.1,133.08,132.96,7.52081156]
[1765030524543,0.1,133.1,133.07,26.60929098]
[1765030524755,0.1,133.11,133.1,25.11880892]
[1765030525070,1e-08,133.15,133.13,7.51145496]
[1765030525219,0.1,133.19,133.16,25.11880892]
[1765030525426,0.1,133.19,133.18,6.15021347]
[1765030525427,1e-08,133.19,133.18,6.15021347]
[1765030525620,0.71,133.28,133.21,16.308864]
[1765030525871,10.36,133.3,133.22,0.99999998]
[1765030525872,1e-08,133.23,133.22,0.99999998]
[1765030526150,2.0,133.3,133.26,16.308864]
[1765030526321,2.0,133.3,133.29,16.308864]
[1765030526524,2.0,133.3,133.28,5.15021349]
[1765030526720,2.0,133.3,133.29,21.45907749]
[1765030526920,2.0,133.3,133.29,24.46354663]
[1765030527122,2.0,133.3,133.29,40.77592984]
[1765030527324,2.0,133.3,133.29,45.75997683]
[1765030527741,2.0,133.3,133.29,31.79981842]
[1765030528047,0.71,133.34,133.3,8.80994492]
[1765030528247,5.86021349,133.36,133.32,6.25750964]
[1765030528544,12.21746465,133.36,133.33,4.98404699]
[1765030528720,0.71,133.35,133.34,4.95843061]
[1765030528927,0.1,133.36,133.34,4.95843061]
[1765030529127,0.1,133.36,133.35,4.95843061]
[1765030529765,12.31746465,133.36,133.35,4.95843061]
[1765030530090,12.21746465,133.36,133.35,4.95843061]
[1765030530264,12.21746465,133.37,133.35,4.95843061]
[1765030530466,12.21746465,133.38,133.33,19.71759262]
[1765030530766,12.21746465,133.38,133.34,13.36039383]
[1765030530967,26.23098252,133.43,133.35,17.79785848]
[1765030530968,7.49456643,133.43,133.35,17.79785848]
[1765030531168,12.21746465,133.4,133.36,4.92039383]
[1765030531360,7.49456643,133.43,133.35,28.15645087]
[1765030531558,12.21746465,133.42,133.37,12.21746465]
[1765030531753,7.49232037,133.47,133.38,20.65746465]
[1765030531981,4.29852795,133.5,133.44,12.21746465]
[1765030532189,4.29852795,133.5,133.45,21.29746465]
[1765030532482,4.29852795,133.5,133.45,9.1]
[1765030532672,3.58852795,133.5,133.46,0.66]
[1765030532852,3.58852795,133.5,133.47,12.21746465]
[1765030533290,3.58852795,133.5,133.48,9.08]
[1765030533582,3.58852795,133.5,133.49,8.42]
[1765030533755,3.58852795,133.5,133.49,4.85556613]
[1765030533956,3.58852795,133.5,133.48,8.42]
[1765030534156,3.58852795,133.5,133.47,19.47940447]
[1765030534381,3.58852795,133.5,133.49,8.80994492]
[1765030534759,15.8059926,133.5,133.49,8.80994492]
[1765030535071,4.29852795,133.5,133.49,8.80994492]
[1765030535390,3.58852795,133.5,133.49,8.80994492]
[1765030535771,3.58852795,133.5,133.49,9.46994492]
[1765030535973,4.29852795,133.5,133.49,8.80994492]
[1765030536361,3.58852795,133.5,133.49,8.80994492]
[1765030536769,4.29852795,133.5,133.49,8.80994492]
[1765030537370,16.5159926,133.5,133.49,8.80994492]
[1765030537564,4.29852795,133.5,133.49,8.80994492]
[1765030538086,3.58852795,133.5,133.49,8.80994492]
[1765030539663,16.4759926,133.5,133.49,8.80994492]
[1765030539882,4.25852795,133.5,133.49,8.80994492]
[1765030540066,4.25852795,133.5,133.4,19.74018334]
[1765030540067,16.4759926,133.5,133.42,9.09]
[1765030540270,20.37866249,133.49,133.44,12.21746465]
[1765030540470,20.37866249,133.49,133.47,12.21746465]
[1765030540685,12.88746465,133.48,133.47,12.21746465]
[1765030540881,0.67,133.48,133.47,12.21746465]
[1765030541203,0.67,133.48,133.44,12.21746465]
[1765030541370,0.67,133.48,133.44,12.90746465]
[1765030541691,12.21746465,133.49,133.45,12.90746465]
[1765030541867,20.37872524,133.49,133.45,12.21746465]
[1765030542064,12.88746465,133.48,133.43,12.21746465]
[1765030542273,0.67,133.48,133.43,12.21746465]
[1765030542471,0.67,133.47,133.43,12.21746465]
[1765030542769,12.88746465,133.47,133.42,20.61746465]
[1765030543182,12.88746465,133.46,133.42,12.21746465]
[1765030543582,12.88746465,133.49,133.44,12.21746465]
[1765030543779,0.67,133.48,133.44,12.21746465]
[1765030544289,0.67,133.48,133.45,12.21746465]
[1765030544992,11.98852795,133.5,133.47,12.21746465]
[1765030544993,11.74920374,133.5,133.47,12.21746465]
[1765030545182,4.25852795,133.5,133.48,12.21746465]
[1765030545576,3.58852795,133.5,133.46,1.19]
[1765030545782,3.58852795,133.5,133.45,23.80223612]
[1765030545783,3.58852795,133.5,133.48,12.21746465]
[1765030546294,3.58852795,133.5,133.49,12.21746465]
[1765030546489,3.58852795,133.5,133.49,12.90746465]
[1765030546690,3.58852795,133.5,133.49,0.69]
[1765030546881,3.58852795,133.5,133.49,12.90746465]
[1765030547078,3.58852795,133.5,133.49,29.20860741]
[1765030547584,3.58852795,133.5,133.48,32.20061481]
[1765030547788,3.58852795,133.5,133.49,20.39866249]
[1765030547992,3.58852795,133.5,133.49,16.99114276]
[1765030548295,3.58852795,133.5,133.49,20.39866249]
[1765030548483,3.58852795,133.5,133.49,29.20860741]
[1765030549795,3.58852795,133.5,133.49,21.71740957]
[1765030549993,3.58852795,133.5,133.49,12.90746465]
[1765030550197,3.58852795,133.5,133.44,0.99999998]
[1765030550198,4.25852795,133.5,133.45,0.69]
[1765030550401,4.25852795,133.5,133.47,12.21746465]
[1765030550901,3.58852795,133.5,133.49,12.21746465]
[1765030551698,3.58852795,133.5,133.49,12.90746465]
[1765030552106,3.58852795,133.5,133.49,16.308864]
[1765030552305,3.58852795,133.5,133.47,0.69]
[1765030552495,3.58852795,133.5,133.48,28.52632865]
[1765030552807,3.58852795,133.5,133.49,12.21746465]
[1765030553106,3.58852795,133.5,133.48,16.308864]
[1765030553588,3.58852795,133.5,133.49,12.21746465]
[1765030554184,3.58852795,133.5,133.45,8.38]
[1765030554185,4.25852795,133.5,133.43,0.69]
[1765030554392,12.88746465,133.49,133.45,12.21746465]
[1765030554592,12.21746465,133.48,133.41,8.38]
[1765030554782,12.21746465,133.48,133.4,41.65471062]
[1765030554783,12.21746465,133.45,133.4,33.46851694]
[1765030554982,12.21746465,133.45,133.41,12.21746465]
[1765030555191,12.88746465,133.44,133.4,33.46851694]
[1765030555394,0.67,133.43,133.4,45.68598159]
[1765030555792,0.67,133.43,133.4,33.46851694]
[1765030556186,0.67,133.43,133.4,45.68598159]
[1765030557002,0.67,133.43,133.4,33.46851694]
[1765030557195,0.67,133.43,133.4,45.68598159]
[1765030557494,12.21746465,133.47,133.42,12.21746465]
[1765030557696,12.88746465,133.47,133.43,12.21746465]
[1765030558204,0.67,133.46,133.43,12.21746465]
[1765030558389,12.88746465,133.46,133.41,0.5]
[1765030558701,12.88746465,133.46,133.42,12.21746465]
[1765030558905,0.69,133.45,133.42,12.21746465]
[1765030559412,20.59746465,133.44,133.4,45.68598159]
[1765030559616,20.59746465,133.44,133.4,12.21746465]
[1765030559617,0.69,133.43,133.4,12.21746465]
[1765030561299,0.69,133.43,133.38,32.61614997]
[1765030561497,12.21746465,133.42,133.36,8.38]
[1765030561704,12.21746465,133.4,133.36,12.21746465]
[1765030561919,12.21746465,133.38,133.35,0.2]
[1765030562218,12.21746465,133.39,133.35,12.41746465]
[1765030562414,7.79943987,133.38,133.35,0.2]
[1765030562610,8.48943987,133.39,133.35,0.2]
[1765030562912,8.38,133.39,133.37,7.79943987]
[1765030563114,0.69,133.38,133.35,7.99943987]
[1765030563418,7.49793806,133.37,133.35,0.2]
[1765030563596,8.18738997,133.38,133.35,0.2]
[1765030563917,0.69,133.4,133.36,7.79943987]
[1765030564125,7.49513318,133.42,133.38,7.79943987]
[1765030564317,9.07,133.41,133.38,7.79943987]
[1765030564619,0.69,133.41,133.4,7.79943987]
[1765030564915,7.79943987,133.44,133.39,7.79943987]
[1765030564916,7.49450091,133.44,133.39,7.79943987]
[1765030565219,9.07,133.43,133.4,7.79943987]